[Event "Titled Tuesday Blitz May 10 Late 2022"]
[White "Clarke, Brandon G I"]
[Black "Vajda, Levente"]
[WhiteFideId "400319"]
[BlackFideId "1203975"]
[WhiteElo "2414"]
[BlackElo "2573"]
[Result "0-1"]
[Round "10"]
[TimeControl "180+1"]
[Date "2022.05.10"]
[WhiteClock "0:00:49"]
[BlackClock "0:00:34"]

1. e4 {[%clk 0:03:00]}  e5 {[%clk 0:02:59]} 2. Nf3 {[%clk 0:03:01]}  Nc6 {[%clk 0:02:58]} 3. Bb5 {[%clk 0:03:01]}  a6 {[%clk 0:02:58]} 4. Ba4 {[%clk 0:03:01]}  Nf6 {[%clk 0:02:59]} 5. O-O {[%clk 0:03:02]}  Be7 {[%clk 0:02:59]} 6. Re1 {[%clk 0:03:02]}  b5 {[%clk 0:02:57]} 7. Bb3 {[%clk 0:03:03]}  d6 {[%clk 0:02:58]} 8. c3 {[%clk 0:03:03]}  O-O {[%clk 0:02:58]} 9. h3 {[%clk 0:03:04]}  Nb8 {[%clk 0:02:57]} 10. d4 {[%clk 0:03:05]}  Nbd7 {[%clk 0:02:57]} 11. Nbd2 {[%clk 0:03:05]}  Bb7 {[%clk 0:02:58]} 12. Bc2 {[%clk 0:03:05]}  Re8 {[%clk 0:02:58]} 13. Nf1 {[%clk 0:03:06]}  Bf8 {[%clk 0:02:59]} 14. Ng3 {[%clk 0:03:06]}  g6 {[%clk 0:02:59]} 15. Bd2 {[%clk 0:03:07]}  Bg7 {[%clk 0:02:57]} 16. Qc1 {[%clk 0:03:07]}  a5 {[%clk 0:02:51]} 17. Bg5 {[%clk 0:03:05]}  a4 {[%clk 0:02:48]} 18. Qd2 {[%clk 0:03:00]}  Nb6 {[%clk 0:02:44]} 19. Nh2 {[%clk 0:02:47]}  Qc8 {[%clk 0:02:34]} 20. Bd3 {[%clk 0:02:16]}  Nc4 {[%clk 0:02:26]} 21. Qe2 {[%clk 0:02:12]}  exd4 {[%clk 0:02:19]} 22. cxd4 {[%clk 0:02:12]}  c5 {[%clk 0:02:19]} 23. Bxc4 {[%clk 0:02:01]}  bxc4 {[%clk 0:02:19]} 24. Qxc4 {[%clk 0:01:51]}  cxd4 {[%clk 0:02:06]} 25. Qd3 {[%clk 0:01:43]}  Qc5 {[%clk 0:01:36]} 26. Nf3 {[%clk 0:01:42]}  Nd7 {[%clk 0:01:31]} 27. Rac1 {[%clk 0:01:42]}  Qb6 {[%clk 0:01:30]} 28. Qa3 {[%clk 0:01:35]}  Nc5 {[%clk 0:01:29]} 29. Nd2 {[%clk 0:01:33]}  Ba6 {[%clk 0:01:11]} 30. Nc4 {[%clk 0:01:32]}  Bxc4 {[%clk 0:01:10]} 31. Rxc4 {[%clk 0:01:33]}  Rab8 {[%clk 0:01:11]} 32. Bf4 {[%clk 0:01:31]}  Qxb2 {[%clk 0:01:07]} 33. Qxb2 {[%clk 0:01:29]}  Rxb2 {[%clk 0:01:07]} 34. Bxd6 {[%clk 0:01:29]}  Nd3 {[%clk 0:01:06]} 35. Re2 {[%clk 0:01:22]}  Rb1+ {[%clk 0:00:52]} 36. Kh2 {[%clk 0:01:22]}  Nb2 {[%clk 0:00:51]} 37. Rb4 {[%clk 0:01:16]}  d3 {[%clk 0:00:51]} 38. Rd2 {[%clk 0:01:16]}  Bc3 {[%clk 0:00:51]} 39. Rbxb2 {[%clk 0:01:11]}  Rxb2 {[%clk 0:00:45]} 40. Rxd3 {[%clk 0:01:11]}  Be5 {[%clk 0:00:43]} 41. Bxe5 {[%clk 0:01:09]}  Rxe5 {[%clk 0:00:44]} 42. f4 {[%clk 0:01:10]}  Re8 {[%clk 0:00:43]} 43. e5 {[%clk 0:01:01]}  Rxa2 {[%clk 0:00:42]} 44. Ne4 {[%clk 0:01:01]}  Ra8 {[%clk 0:00:42]} 45. Nf6+ {[%clk 0:00:57]}  Kg7 {[%clk 0:00:39]} 46. Rd7 {[%clk 0:00:57]}  Re2 {[%clk 0:00:38]} 47. Kg3 {[%clk 0:00:49]}  a3 {[%clk 0:00:38]} 48. Kf3 {[%clk 0:00:50]}  Re1 {[%clk 0:00:38]} 49. Ne4 {[%clk 0:00:48]}  a2 {[%clk 0:00:36]} 50. Ng5 {[%clk 0:00:48]}  a1=Q {[%clk 0:00:34]} 51. Rxf7+ {[%clk 0:00:49]}  Kg8 {[%clk 0:00:34]} 0-1


[Site "https://www.chess.com"]

[Event "Titled Tuesday Blitz May 10 Late 2022"]
[White "D`Arruda, Ricardo D."]
[Black "Vujic, Mihailo"]
[WhiteFideId "100692"]
[BlackFideId "918873"]
[WhiteElo "2438"]
[BlackElo "2256"]
[Result "0-1"]
[Round "10"]
[TimeControl "180+1"]
[Date "2022.05.11"]
[WhiteClock "0:01:02"]
[BlackClock "0:00:14"]

1. g3 {[%clk 0:02:01]}  e5 {[%clk 0:02:57]} 2. Bg2 {[%clk 0:02:02]}  Nc6 {[%clk 0:02:55]} 3. d3 {[%clk 0:02:03]}  d5 {[%clk 0:02:55]} 4. e4 {[%clk 0:02:04]}  dxe4 {[%clk 0:02:53]} 5. Nd2 {[%clk 0:02:05]}  exd3 {[%clk 0:02:53]} 6. cxd3 {[%clk 0:02:03]}  Qxd3 {[%clk 0:02:51]} 7. Ngf3 {[%clk 0:02:04]}  Bg4 {[%clk 0:02:49]} 8. Qa4 {[%clk 0:01:58]}  Nf6 {[%clk 0:02:37]} 9. h3 {[%clk 0:01:52]}  Bxf3 {[%clk 0:02:09]} 10. Bxf3 {[%clk 0:01:51]}  e4 {[%clk 0:01:59]} 11. Bxe4 {[%clk 0:01:50]}  Nxe4 {[%clk 0:01:57]} 12. Qxe4+ {[%clk 0:01:51]}  Qxe4+ {[%clk 0:01:55]} 13. Nxe4 {[%clk 0:01:52]}  Bb4+ {[%clk 0:01:55]} 14. Bd2 {[%clk 0:01:48]}  Bxd2+ {[%clk 0:01:54]} 15. Kxd2 {[%clk 0:01:49]}  O-O-O+ {[%clk 0:01:53]} 16. Kc3 {[%clk 0:01:50]}  Rhe8 {[%clk 0:01:47]} 17. Rhe1 {[%clk 0:01:45]}  Re5 {[%clk 0:01:17]} 18. f4 {[%clk 0:01:32]}  Red5 {[%clk 0:01:16]} 19. Re3 {[%clk 0:01:31]}  f5 {[%clk 0:01:10]} 20. Ng5 {[%clk 0:01:31]}  Rc5+ {[%clk 0:01:10]} 21. Kb3 {[%clk 0:01:29]}  Na5+ {[%clk 0:01:03]} 22. Kb4 {[%clk 0:01:26]}  b6 {[%clk 0:00:53]} 23. Ne6 {[%clk 0:01:18]}  Rc4+ {[%clk 0:00:50]} 24. Ka3 {[%clk 0:01:13]}  Rd6 {[%clk 0:00:32]} 25. b3 {[%clk 0:01:13]}  Rc2 {[%clk 0:00:29]} 26. Nxg7 {[%clk 0:01:11]}  b5 {[%clk 0:00:21]} 27. Nxf5 {[%clk 0:01:07]}  Ra6 {[%clk 0:00:20]} 28. Kb4 {[%clk 0:01:02]}  Nc6+ {[%clk 0:00:16]} 29. Kxb5 {[%clk 0:01:02]}  Ra5# {[%clk 0:00:14]} 0-1


[Site "https://www.chess.com"]

[Event "Titled Tuesday Blitz May 10 Late 2022"]
[White "Demchenko, Anton"]
[Black "Koellner, Ruben Gideon"]
[WhiteFideId "4160258"]
[BlackFideId "12993093"]
[WhiteElo "2539"]
[BlackElo "2638"]
[Result "1-0"]
[Round "10"]
[TimeControl "180+1"]
[Date "2022.05.10"]
[WhiteClock "0:00:49"]
[BlackClock "0:00:03"]

1. e4 {[%clk 0:03:00]}  d6 {[%clk 0:03:00]} 2. d4 {[%clk 0:03:00]}  Nf6 {[%clk 0:03:00]} 3. Nc3 {[%clk 0:03:00]}  e5 {[%clk 0:03:00]} 4. dxe5 {[%clk 0:03:00]}  dxe5 {[%clk 0:03:01]} 5. Qxd8+ {[%clk 0:03:01]}  Kxd8 {[%clk 0:03:02]} 6. Nf3 {[%clk 0:03:02]}  Bd6 {[%clk 0:03:01]} 7. Bc4 {[%clk 0:02:58]}  Be6 {[%clk 0:03:01]} 8. Bxe6 {[%clk 0:02:58]}  fxe6 {[%clk 0:03:02]} 9. Nd2 {[%clk 0:02:45]}  Ke7 {[%clk 0:03:02]} 10. f3 {[%clk 0:02:44]}  Nbd7 {[%clk 0:03:01]} 11. Nc4 {[%clk 0:02:43]}  a6 {[%clk 0:03:01]} 12. a4 {[%clk 0:02:43]}  h6 {[%clk 0:02:52]} 13. Bd2 {[%clk 0:02:40]}  g5 {[%clk 0:02:51]} 14. h3 {[%clk 0:02:40]}  Rag8 {[%clk 0:02:50]} 15. Na5 {[%clk 0:02:38]}  Rb8 {[%clk 0:02:47]} 16. Nd1 {[%clk 0:02:31]}  Rhg8 {[%clk 0:02:42]} 17. b4 {[%clk 0:02:29]}  h5 {[%clk 0:02:42]} 18. g4 {[%clk 0:02:30]}  hxg4 {[%clk 0:02:26]} 19. hxg4 {[%clk 0:02:29]}  Kf7 {[%clk 0:02:26]} 20. Nf2 {[%clk 0:02:27]}  Kg6 {[%clk 0:02:19]} 21. Nd3 {[%clk 0:02:23]}  Rh8 {[%clk 0:02:09]} 22. Ke2 {[%clk 0:02:23]}  b5 {[%clk 0:02:02]} 23. axb5 {[%clk 0:02:10]}  axb5 {[%clk 0:02:03]} 24. Be3 {[%clk 0:02:02]}  Rxh1 {[%clk 0:01:51]} 25. Rxh1 {[%clk 0:02:02]}  Ra8 {[%clk 0:01:51]} 26. c3 {[%clk 0:01:59]}  Nh7 {[%clk 0:01:03]} 27. Rb1 {[%clk 0:01:43]}  Nhf6 {[%clk 0:01:01]} 28. Rb2 {[%clk 0:01:40]}  Rh8 {[%clk 0:00:59]} 29. c4 {[%clk 0:01:35]}  bxc4 {[%clk 0:00:54]} 30. Nxc4 {[%clk 0:01:35]}  Rh2+ {[%clk 0:00:46]} 31. Nf2 {[%clk 0:01:36]}  Ne8 {[%clk 0:00:37]} 32. Rd2 {[%clk 0:01:28]}  Kf6 {[%clk 0:00:22]} 33. b5 {[%clk 0:01:27]}  Rh8 {[%clk 0:00:17]} 34. Rc2 {[%clk 0:01:18]}  Nf8 {[%clk 0:00:14]} 35. Ra2 {[%clk 0:01:08]}  Ng6 {[%clk 0:00:13]} 36. Ra8 {[%clk 0:01:06]}  Nf4+ {[%clk 0:00:11]} 37. Kf1 {[%clk 0:01:02]}  Ke7 {[%clk 0:00:08]} 38. Ra7 {[%clk 0:01:02]}  Kd8 {[%clk 0:00:08]} 39. Na5 {[%clk 0:00:59]}  Kc8 {[%clk 0:00:05]} 40. Ra8+ {[%clk 0:00:57]}  Kd7 {[%clk 0:00:04]} 41. Nc6 {[%clk 0:00:57]}  Be7 {[%clk 0:00:02]} 42. Nxe5+ {[%clk 0:00:55]}  Kd6 {[%clk 0:00:02]} 43. Nf7+ {[%clk 0:00:55]}  Kd7 {[%clk 0:00:01]} 44. Nxh8 {[%clk 0:00:56]}  Nd6 {[%clk 0:00:01]} 45. Bxf4 {[%clk 0:00:53]}  gxf4 {[%clk 0:00:02]} 46. Nd3 {[%clk 0:00:52]}  Nxb5 {[%clk 0:00:02]} 47. Ng6 {[%clk 0:00:50]}  Nd4 {[%clk 0:00:03]} 48. Nge5+ {[%clk 0:00:49]} 1-0


[Site "https://www.chess.com"]

[Event "Titled Tuesday Blitz May 10 Late 2022"]
[White "Derraugh, Geordie"]
[Black "Keller, Peter"]
[WhiteFideId "2603950"]
[BlackFideId "1272105"]
[WhiteElo "2116"]
[BlackElo "2275"]
[Result "1/2-1/2"]
[Round "10"]
[TimeControl "180+1"]
[Date "2022.05.11"]
[WhiteClock "0:00:09"]
[BlackClock "0:00:13"]

1. e4 {[%clk 0:03:00]}  e5 {[%clk 0:02:58]} 2. Nf3 {[%clk 0:03:00]}  Nc6 {[%clk 0:02:58]} 3. d4 {[%clk 0:03:00]}  exd4 {[%clk 0:02:57]} 4. Bc4 {[%clk 0:03:00]}  Nf6 {[%clk 0:02:57]} 5. e5 {[%clk 0:03:00]}  d5 {[%clk 0:02:55]} 6. Bb5 {[%clk 0:03:00]}  Ne4 {[%clk 0:02:55]} 7. Nxd4 {[%clk 0:03:01]}  Bc5 {[%clk 0:02:54]} 8. Bxc6+ {[%clk 0:03:00]}  bxc6 {[%clk 0:02:53]} 9. O-O {[%clk 0:02:59]}  Bd7 {[%clk 0:02:54]} 10. Be3 {[%clk 0:02:56]}  Rb8 {[%clk 0:02:49]} 11. f3 {[%clk 0:02:54]}  Ng5 {[%clk 0:02:48]} 12. f4 {[%clk 0:02:54]}  Ne4 {[%clk 0:02:47]} 13. b3 {[%clk 0:02:34]}  O-O {[%clk 0:02:44]} 14. c4 {[%clk 0:02:32]}  f6 {[%clk 0:02:32]} 15. cxd5 {[%clk 0:02:00]}  fxe5 {[%clk 0:02:07]} 16. fxe5 {[%clk 0:02:00]}  Rxf1+ {[%clk 0:02:02]} 17. Kxf1 {[%clk 0:01:58]}  cxd5 {[%clk 0:02:01]} 18. Nd2 {[%clk 0:01:43]}  Qh4 {[%clk 0:01:40]} 19. N2f3 {[%clk 0:01:38]}  Rf8 {[%clk 0:01:24]} 20. Kg1 {[%clk 0:01:29]}  Qh5 {[%clk 0:01:24]} 21. Rc1 {[%clk 0:01:18]}  Bb6 {[%clk 0:01:22]} 22. Nc2 {[%clk 0:00:37]}  Nc3 {[%clk 0:00:54]} 23. Qd2 {[%clk 0:00:29]}  Rxf3 {[%clk 0:00:48]} 24. gxf3 {[%clk 0:00:27]}  Qxf3 {[%clk 0:00:49]} 25. Qxc3 {[%clk 0:00:20]}  Bh3 {[%clk 0:00:24]} 26. Qd2 {[%clk 0:00:10]}  Qg4+ {[%clk 0:00:21]} 27. Kh1 {[%clk 0:00:09]}  Qe4+ {[%clk 0:00:16]} 28. Kg1 {[%clk 0:00:08]}  Qg4+ {[%clk 0:00:14]} 29. Kh1 {[%clk 0:00:09]}  Qf3+ {[%clk 0:00:13]} 30. Kg1 {[%clk 0:00:09]}  Qg4+ {[%clk 0:00:13]} 1/2-1/2


[Site "https://www.chess.com"]

[Event "Titled Tuesday Blitz May 10 Late 2022"]
[White "Djokic, Mihailo"]
[Black "Nagy, Gabor"]
[WhiteFideId "976440"]
[BlackFideId "737119"]
[WhiteElo "2202"]
[BlackElo "2569"]
[Result "1-0"]
[Round "10"]
[TimeControl "180+1"]
[Date "2022.05.10"]
[WhiteClock "0:00:05"]
[BlackClock "0:01:09"]

1. e4 {[%clk 0:03:00]}  e5 {[%clk 0:02:59]} 2. Nf3 {[%clk 0:03:00]}  Nc6 {[%clk 0:03:00]} 3. Nc3 {[%clk 0:03:01]}  Nf6 {[%clk 0:02:59]} 4. Bb5 {[%clk 0:03:01]}  Bd6 {[%clk 0:02:57]} 5. Bxc6 {[%clk 0:03:01]}  dxc6 {[%clk 0:02:57]} 6. d4 {[%clk 0:03:02]}  exd4 {[%clk 0:02:56]} 7. Qxd4 {[%clk 0:03:03]}  c5 {[%clk 0:02:54]} 8. Qd3 {[%clk 0:03:03]}  Bg4 {[%clk 0:02:52]} 9. e5 {[%clk 0:02:57]}  Bxf3 {[%clk 0:02:49]} 10. exf6 {[%clk 0:02:50]}  Bc6 {[%clk 0:02:44]} 11. Qe3+ {[%clk 0:02:08]}  Kd7 {[%clk 0:02:41]} 12. Qh3+ {[%clk 0:02:07]}  Ke8 {[%clk 0:02:40]} 13. fxg7 {[%clk 0:02:05]}  Qe7+ {[%clk 0:02:40]} 14. Be3 {[%clk 0:02:04]}  Rg8 {[%clk 0:02:39]} 15. Qxh7 {[%clk 0:02:04]}  Kd7 {[%clk 0:02:38]} 16. O-O-O {[%clk 0:02:02]}  Rae8 {[%clk 0:02:34]} 17. Bxc5 {[%clk 0:01:56]}  Qg5+ {[%clk 0:02:32]} 18. Be3 {[%clk 0:01:55]}  Qxg7 {[%clk 0:02:32]} 19. Qf5+ {[%clk 0:01:49]}  Re6 {[%clk 0:02:31]} 20. Nd5 {[%clk 0:01:34]}  Kc8 {[%clk 0:02:25]} 21. g3 {[%clk 0:01:26]}  Kb8 {[%clk 0:02:22]} 22. Rhe1 {[%clk 0:01:20]}  Re5 {[%clk 0:02:16]} 23. Qf3 {[%clk 0:01:19]}  Rge8 {[%clk 0:02:15]} 24. Bd4 {[%clk 0:01:07]}  Qg5+ {[%clk 0:02:06]} 25. Be3 {[%clk 0:01:02]}  Bxd5 {[%clk 0:02:04]} 26. Qxd5 {[%clk 0:00:25]}  Rxd5 {[%clk 0:02:05]} 27. Bxg5 {[%clk 0:00:24]}  Rxe1 {[%clk 0:01:35]} 28. Rxe1 {[%clk 0:00:21]}  b5 {[%clk 0:01:36]} 29. Bd2 {[%clk 0:00:18]}  Kb7 {[%clk 0:01:35]} 30. h4 {[%clk 0:00:18]}  b4 {[%clk 0:01:34]} 31. b3 {[%clk 0:00:18]}  a5 {[%clk 0:01:34]} 32. Re4 {[%clk 0:00:18]}  f5 {[%clk 0:01:32]} 33. Rc4 {[%clk 0:00:15]}  Ka6 {[%clk 0:01:27]} 34. Bf4 {[%clk 0:00:15]}  Bc5 {[%clk 0:01:25]} 35. Be3 {[%clk 0:00:12]}  Bd6 {[%clk 0:01:24]} 36. h5 {[%clk 0:00:11]}  Kb5 {[%clk 0:01:19]} 37. h6 {[%clk 0:00:11]}  Be5 {[%clk 0:01:19]} 38. Bf4 {[%clk 0:00:08]}  Bc3 {[%clk 0:01:17]} 39. Rxc3 {[%clk 0:00:07]}  bxc3 {[%clk 0:01:17]} 40. h7 {[%clk 0:00:07]}  Rd7 {[%clk 0:01:12]} 41. h8=Q {[%clk 0:00:06]}  Re7 {[%clk 0:01:13]} 42. Qxc3 {[%clk 0:00:05]}  Ka6 {[%clk 0:01:11]} 43. Qc4+ {[%clk 0:00:06]}  Kb7 {[%clk 0:01:09]} 44. Qb5+ {[%clk 0:00:05]}  Kc8 {[%clk 0:01:09]} 45. Qxf5+ {[%clk 0:00:05]}  Kb7 {[%clk 0:01:09]} 46. Qxa5 {[%clk 0:00:05]}  Re1+ {[%clk 0:01:09]} 47. Qxe1 {[%clk 0:00:05]} 1-0


[Site "https://www.chess.com"]

[Event "Titled Tuesday Blitz May 10 Late 2022"]
[White "Dreev, Aleksey"]
[Black "Maksimovic, Bojan"]
[WhiteFideId "4100107"]
[BlackFideId "14408120"]
[WhiteElo "2625"]
[BlackElo "2448"]
[Result "1-0"]
[Round "10"]
[TimeControl "180+1"]
[Date "2022.05.10"]
[WhiteClock "0:00:30"]
[BlackClock "0:00:01"]

1. d4 {[%clk 0:03:00]}  d5 {[%clk 0:02:59]} 2. c4 {[%clk 0:03:00]}  e5 {[%clk 0:02:59]} 3. dxe5 {[%clk 0:02:57]}  d4 {[%clk 0:03:00]} 4. Nf3 {[%clk 0:02:57]}  Nc6 {[%clk 0:03:00]} 5. a3 {[%clk 0:02:57]}  Nge7 {[%clk 0:03:00]} 6. b4 {[%clk 0:02:57]}  Ng6 {[%clk 0:03:00]} 7. Bb2 {[%clk 0:02:55]}  a5 {[%clk 0:03:01]} 8. b5 {[%clk 0:02:53]}  Ncxe5 {[%clk 0:03:01]} 9. Nxe5 {[%clk 0:02:39]}  Nxe5 {[%clk 0:03:02]} 10. Qxd4 {[%clk 0:02:40]}  Qxd4 {[%clk 0:03:01]} 11. Bxd4 {[%clk 0:02:41]}  Nxc4 {[%clk 0:03:02]} 12. e3 {[%clk 0:02:38]}  Be6 {[%clk 0:03:01]} 13. Be2 {[%clk 0:02:34]}  O-O-O {[%clk 0:03:01]} 14. O-O {[%clk 0:02:32]}  Kb8 {[%clk 0:03:00]} 15. Rc1 {[%clk 0:02:29]}  Nb6 {[%clk 0:03:00]} 16. Nc3 {[%clk 0:02:26]}  f5 {[%clk 0:02:43]} 17. g3 {[%clk 0:02:08]}  Rg8 {[%clk 0:02:40]} 18. h4 {[%clk 0:02:05]}  g6 {[%clk 0:02:38]} 19. Bf3 {[%clk 0:02:02]}  h6 {[%clk 0:02:33]} 20. Ne2 {[%clk 0:01:57]}  g5 {[%clk 0:02:27]} 21. Bf6 {[%clk 0:01:51]}  Rc8 {[%clk 0:02:03]} 22. hxg5 {[%clk 0:01:43]}  hxg5 {[%clk 0:02:04]} 23. Nd4 {[%clk 0:01:38]}  Bd7 {[%clk 0:02:03]} 24. Be5 {[%clk 0:01:38]}  Bg7 {[%clk 0:01:59]} 25. Bxg7 {[%clk 0:01:11]}  Rxg7 {[%clk 0:02:00]} 26. Rc5 {[%clk 0:01:01]}  f4 {[%clk 0:01:57]} 27. g4 {[%clk 0:01:01]}  fxe3 {[%clk 0:01:57]} 28. fxe3 {[%clk 0:01:01]}  Re8 {[%clk 0:01:43]} 29. Re1 {[%clk 0:01:01]}  Nc8 {[%clk 0:01:13]} 30. Kg2 {[%clk 0:00:55]}  Nd6 {[%clk 0:01:12]} 31. e4 {[%clk 0:00:55]}  b6 {[%clk 0:01:07]} 32. Rd5 {[%clk 0:00:54]}  Nc4 {[%clk 0:00:18]} 33. e5 {[%clk 0:00:52]}  Nd2 {[%clk 0:00:04]} 34. e6 {[%clk 0:00:52]}  Nxf3 {[%clk 0:00:04]} 35. Kxf3 {[%clk 0:00:50]}  Bc8 {[%clk 0:00:03]} 36. Nc6+ {[%clk 0:00:50]}  Kb7 {[%clk 0:00:03]} 37. Ree5 {[%clk 0:00:42]}  Rg6 {[%clk 0:00:02]} 38. e7 {[%clk 0:00:38]}  Rf6+ {[%clk 0:00:03]} 39. Kg3 {[%clk 0:00:36]}  Rf1 {[%clk 0:00:02]} 40. Rd8 {[%clk 0:00:34]}  Rg1+ {[%clk 0:00:02]} 41. Kf2 {[%clk 0:00:34]}  Rxe7 {[%clk 0:00:01]} 42. Nxe7 {[%clk 0:00:31]}  Bxg4 {[%clk 0:00:01]} 43. Kxg1 {[%clk 0:00:30]} 1-0


[Site "https://www.chess.com"]

[Event "Titled Tuesday Blitz May 10 Late 2022"]
[White "Fishbein, Alexander"]
[Black "Shimanov, Aleksandr"]
[WhiteFideId "2000377"]
[BlackFideId "4198603"]
[WhiteElo "2442"]
[BlackElo "2605"]
[Result "0-1"]
[Round "10"]
[TimeControl "180+1"]
[Date "2022.05.10"]
[WhiteClock "0:00:04"]
[BlackClock "0:00:14"]

1. Nf3 {[%clk 0:03:00]}  d5 {[%clk 0:02:58]} 2. g3 {[%clk 0:02:59]}  b6 {[%clk 0:02:57]} 3. Bg2 {[%clk 0:02:59]}  Bb7 {[%clk 0:02:57]} 4. O-O {[%clk 0:03:00]}  e6 {[%clk 0:02:57]} 5. d3 {[%clk 0:02:58]}  Nf6 {[%clk 0:02:57]} 6. Nc3 {[%clk 0:02:53]}  Be7 {[%clk 0:02:42]} 7. e4 {[%clk 0:02:53]}  c5 {[%clk 0:02:40]} 8. exd5 {[%clk 0:02:50]}  Nxd5 {[%clk 0:02:41]} 9. d4 {[%clk 0:02:43]}  Nxc3 {[%clk 0:02:39]} 10. bxc3 {[%clk 0:02:43]}  O-O {[%clk 0:02:39]} 11. Qd3 {[%clk 0:02:38]}  Nd7 {[%clk 0:02:35]} 12. Ng5 {[%clk 0:02:26]}  Bxg5 {[%clk 0:02:35]} 13. Bxb7 {[%clk 0:02:24]}  Rb8 {[%clk 0:02:34]} 14. Bxg5 {[%clk 0:02:16]}  Qxg5 {[%clk 0:02:35]} 15. Bc6 {[%clk 0:02:15]}  Nf6 {[%clk 0:02:34]} 16. Rfe1 {[%clk 0:02:13]}  Rfd8 {[%clk 0:02:30]} 17. Re5 {[%clk 0:02:11]}  Qh6 {[%clk 0:02:24]} 18. Qe3 {[%clk 0:01:58]}  Qxe3 {[%clk 0:02:06]} 19. fxe3 {[%clk 0:01:57]}  Rbc8 {[%clk 0:02:07]} 20. Ba4 {[%clk 0:01:44]}  Nd5 {[%clk 0:02:02]} 21. dxc5 {[%clk 0:01:26]}  Rxc5 {[%clk 0:02:01]} 22. Rd1 {[%clk 0:01:23]}  Rdc8 {[%clk 0:01:53]} 23. Bb3 {[%clk 0:01:22]}  Nxc3 {[%clk 0:01:42]} 24. Rxc5 {[%clk 0:01:18]}  bxc5 {[%clk 0:01:43]} 25. Rd7 {[%clk 0:01:11]}  Kf8 {[%clk 0:01:36]} 26. Bc4 {[%clk 0:01:10]}  a5 {[%clk 0:01:30]} 27. Ra7 {[%clk 0:00:59]}  a4 {[%clk 0:01:24]} 28. Kf2 {[%clk 0:00:55]}  Rd8 {[%clk 0:01:23]} 29. Bd3 {[%clk 0:00:46]}  c4 {[%clk 0:01:06]} 30. Bxc4 {[%clk 0:00:46]}  Rd2+ {[%clk 0:01:07]} 31. Kf3 {[%clk 0:00:46]}  Rxc2 {[%clk 0:01:07]} 32. h4 {[%clk 0:00:37]}  Nd1 {[%clk 0:00:47]} 33. Be2 {[%clk 0:00:19]}  Nc3 {[%clk 0:00:47]} 34. Bc4 {[%clk 0:00:18]}  h5 {[%clk 0:00:44]} 35. e4 {[%clk 0:00:17]}  Nxe4 {[%clk 0:00:38]} 36. Bd3 {[%clk 0:00:17]}  Nd2+ {[%clk 0:00:38]} 37. Kf4 {[%clk 0:00:12]}  Rc3 {[%clk 0:00:30]} 38. Bb5 {[%clk 0:00:11]}  a3 {[%clk 0:00:29]} 39. g4 {[%clk 0:00:03]}  hxg4 {[%clk 0:00:26]} 40. Kxg4 {[%clk 0:00:04]}  Ne4 {[%clk 0:00:22]} 41. h5 {[%clk 0:00:03]}  Nf6+ {[%clk 0:00:20]} 42. Kf4 {[%clk 0:00:03]}  Nxh5+ {[%clk 0:00:17]} 43. Ke4 {[%clk 0:00:04]}  Nf6+ {[%clk 0:00:15]} 44. Kd4 {[%clk 0:00:04]}  Rg3 {[%clk 0:00:15]} 45. Bc4 {[%clk 0:00:03]}  g5 {[%clk 0:00:14]} 46. Bb3 {[%clk 0:00:03]}  g4 {[%clk 0:00:13]} 47. Rxa3 {[%clk 0:00:03]}  Rg1 {[%clk 0:00:14]} 48. Ra8+ {[%clk 0:00:04]}  Kg7 {[%clk 0:00:14]} 49. Ra7 {[%clk 0:00:04]}  Kg6 {[%clk 0:00:14]} 50. Bc2+ {[%clk 0:00:04]}  Kg7 {[%clk 0:00:15]} 51. Bd3 {[%clk 0:00:04]}  g3 {[%clk 0:00:15]} 52. a4 {[%clk 0:00:04]}  Rd1 {[%clk 0:00:15]} 53. Ke3 {[%clk 0:00:04]}  g2 {[%clk 0:00:14]} 0-1


[Site "https://www.chess.com"]

[Event "Titled Tuesday Blitz May 10 Late 2022"]
[White "Hansen, Eric"]
[Black "Bortnyk, Olexandr"]
[WhiteFideId "2606771"]
[BlackFideId "14120828"]
[WhiteElo "2568"]
[BlackElo "2723"]
[Result "0-1"]
[Round "10"]
[TimeControl "180+1"]
[Date "2022.05.10"]
[WhiteClock "0:00:04"]
[BlackClock "0:00:34"]

1. d4 {[%clk 0:02:57]}  d6 {[%clk 0:02:58]} 2. e4 {[%clk 0:02:55]}  Nf6 {[%clk 0:02:59]} 3. Nc3 {[%clk 0:02:55]}  e5 {[%clk 0:02:59]} 4. Nf3 {[%clk 0:02:55]}  Nbd7 {[%clk 0:02:58]} 5. Bc4 {[%clk 0:02:51]}  Be7 {[%clk 0:02:58]} 6. O-O {[%clk 0:02:47]}  c6 {[%clk 0:02:58]} 7. a4 {[%clk 0:02:47]}  Qc7 {[%clk 0:02:58]} 8. Re1 {[%clk 0:02:45]}  h6 {[%clk 0:02:57]} 9. b4 {[%clk 0:02:34]}  O-O {[%clk 0:02:41]} 10. Bb3 {[%clk 0:02:27]}  Rd8 {[%clk 0:02:26]} 11. Be3 {[%clk 0:02:21]}  Nf8 {[%clk 0:02:20]} 12. d5 {[%clk 0:02:15]}  Bg4 {[%clk 0:02:07]} 13. h3 {[%clk 0:02:14]}  Bh5 {[%clk 0:02:08]} 14. dxc6 {[%clk 0:00:55]}  bxc6 {[%clk 0:02:05]} 15. Bd2 {[%clk 0:00:44]}  Ne6 {[%clk 0:01:49]} 16. b5 {[%clk 0:00:33]}  Nd4 {[%clk 0:01:45]} 17. bxc6 {[%clk 0:00:32]}  Bxf3 {[%clk 0:01:31]} 18. gxf3 {[%clk 0:00:31]}  Nxb3 {[%clk 0:01:32]} 19. cxb3 {[%clk 0:00:31]}  Qxc6 {[%clk 0:01:32]} 20. Rc1 {[%clk 0:00:25]}  Qd7 {[%clk 0:01:31]} 21. Kg2 {[%clk 0:00:26]}  Qe6 {[%clk 0:01:21]} 22. Nb5 {[%clk 0:00:23]}  Ne8 {[%clk 0:01:10]} 23. Ba5 {[%clk 0:00:23]}  Rd7 {[%clk 0:01:03]} 24. Qd5 {[%clk 0:00:13]}  Qg6+ {[%clk 0:01:02]} 25. Kh2 {[%clk 0:00:11]}  Rb8 {[%clk 0:01:03]} 26. Qc6 {[%clk 0:00:07]}  Rdb7 {[%clk 0:00:52]} 27. Rg1 {[%clk 0:00:05]}  Bg5 {[%clk 0:00:48]} 28. Rc3 {[%clk 0:00:01]}  Bf4+ {[%clk 0:00:45]} 29. Kh1 {[%clk 0:00:02]}  Qh5 {[%clk 0:00:46]} 30. Kg2 {[%clk 0:00:02]}  Bd2 {[%clk 0:00:43]} 31. Qc4 {[%clk 0:00:02]}  a6 {[%clk 0:00:42]} 32. Na3 {[%clk 0:00:01]}  Bxc3 {[%clk 0:00:40]} 33. Bxc3 {[%clk 0:00:02]}  Rxb3 {[%clk 0:00:40]} 34. Nc2 {[%clk 0:00:03]}  Qg6+ {[%clk 0:00:33]} 35. Kf1 {[%clk 0:00:03]}  Qe6 {[%clk 0:00:34]} 36. Qxe6 {[%clk 0:00:03]}  fxe6 {[%clk 0:00:34]} 37. Be1 {[%clk 0:00:03]}  Rxf3 {[%clk 0:00:34]} 38. Ne3 {[%clk 0:00:04]}  Rxh3 {[%clk 0:00:34]} 0-1


[Site "https://www.chess.com"]